Cogmind - Beta 16 @@@ ROGUE MODE // 2025.11.05 @ 08:40:00 Player: Demo Result: Destroyed by CL-END(j) with Overtuned Pulse Rifle Performance ------------- Evolutions (0) 0 Regions Visited (5) 1000 Robots Destroyed (34) 170 Value Destroyed (1202) 1202 Prototype IDs (12) 240 Alien Tech Used (0) 0 Bonus (34) 34 TOTAL SCORE: 2646 Bonus ------- Follower Combat Kills 112 Friendly Fire -78 Cogmind --------- Core Integrity 0/250 Matter 13/300 Energy 98/100 System Corruption 0% Temperature Warning (323) Movement Core (50) Location -9/Scraptown Parts ------- > --- POWER (1) -------- (None) > --- PROPULSION (2) --- (None) > --- UTILITY (2) ------ (None) > --- WEAPON (2) ------- (None) > --- INVENTORY (5) ---- High-capacity Matter Pod (64) Structural Scanner Flamer Peak State ------------ > --- POWER ------------ (None) > --- PROPULSION ------- Compact Wheel Compact Wheel > --- UTILITY ---------- Large Storage Unit Gun Armor > --- WEAPON ----------- Plasma Rifle Makeshift Shrapnel Gun Mini Grenade Launcher Subdweller Shrapnel Launcher > --- INVENTORY -------- Light Treads Light Treads Compact Wheel High-capacity Matter Pod Structural Scanner Hardened Heavy Armor Plating Makeshift Light Armor Plating Tech Extrapolator Subdweller Machine Gun Plasma Cutter CPS Tube CPS Tube Flamer [Rating: 28] Favorites ----------- Power Subdweller Power Source Engine Subdweller Power Source Propulsion Compact Wheel Treads Light Treads Wheel Compact Wheel Utility Large Storage Unit Storage Large Storage Unit Hackware Makeshift System Shield Protection Medium Armor Plating Weapon Makeshift Shrapnel Gun Energy Gun Plasma Rifle Ballistic Gun Makeshift Shrapnel Gun Launcher Mini Grenade Launcher Special Weapon Flamer Build | -11 -10 -10 -10 -9 -9 ------- Run | Yrd Mat Min Sub Rec Scr Slots Evolved . | . . . . . . Power . | . . . . . . Propulsion . | . . . . . . Utility . | . . . . . . Weapon . | . . . . . . Parts Attached 26 | 2 . . 7 8 9 Power 1 | . . . 1 . . Engine 1 | . . . 1 . . Core . | . . . . . . Reactor . | . . . . . . Propulsion 8 | 2 . . . 4 2 Treads 4 | 2 . . . 2 . Leg . | . . . . . . Wheel 4 | . . . . 2 2 Hover . | . . . . . . Flight . | . . . . . . Utility 8 | . . . 2 3 3 Device . | . . . . . . Storage 1 | . . . . 1 . Processor . | . . . . . . Hackware 1 | . . . 1 . . Protection 6 | . . . 1 2 3 Artifact . | . . . . . . Weapon 9 | . . . 4 1 4 Energy Gun 1 | . . . . . 1 Energy Cannon . | . . . . . . Ballistic Gun 4 | . . . 2 1 1 Ballistic Cannon . | . . . . . . Launcher 3 | . . . 1 . 2 Special Weapon 1 | . . . 1 . . Impact Weapon . | . . . . . . Slashing Weapon . | . . . . . . Piercing Weapon . | . . . . . . Special Melee Weapon . | . . . . . . Unidentified Prototypes . | . . . . . . Parts Lost 8 | . . . . 1 7 Power . | . . . . . . Propulsion 3 | . . . . . 3 Utility . | . . . . . . Weapon 5 | . . . . 1 4 Highest Loss Streak 3 | . . . . 1 3 To Critical Strikes . | . . . . . . Average Backups 6 | . . . 4 6 9 Power . | . . . . . . Propulsion 2 | . . . . 2 2 Utility 1 | . . . . 1 2 Weapon 2 | . . . 2 3 3 Tool/Special . | . . . . . . Unused Backups 9 | . . . 2 . 7 Power . | . . . . . . Propulsion 1 | . . . 1 . . Utility 5 | . . . . . 5 Weapon 1 | . . . 1 . . Tool/Special 2 | . . . . . 2 Average Slot Usage (%) 84 | . 28 28 86 85 84 Engine 2 | . . . 10 1 . Treads 12 | . 28 28 28 12 . Wheel 15 | . . . . 15 25 Storage 9 | . . . . 10 13 Hackware 2 | . . . 11 . . Protection 14 | . . . 10 16 13 Ballistic Gun 26 | . . . 24 28 26 Peak Build Rating 28 | 2 2 2 20 20 28 Average Rating 13 | 1 2 2 17 12 15 On Entrance 6 | . 2 2 2 20 12 Avg Prop Armor Cover (%) 35 | 41 41 41 33 . . Naked Turns 1 | . . . . . 1 Heaviest Build 39 | . . . 14 33 39 Greatest Support 40 | 3 3 3 40 40 32 Greatest Overweight (x) 2 | . . . 1 1 2 Average Overweight (x) . | . . . . . . Largest Inventory Capacity 15 | 5 5 5 5 15 15 Average Capacity 11 | 5 5 5 5 12 14 Most Carried 15 | . . 1 5 7 15 Average Carried 7 | . . . 4 6 10 Final Capacity 15 | 5 5 5 5 15 5 Final Carried 7 | . . 1 5 7 3 Class Distribution -------------------- 67% | Commander-Mutant 18% | Derelict-Mutant 7% | Mutant 7% | Gunner Dominant Class ---------------- Mutant | -10/Materials Mutant | -10/Mines Derelict-Mutant | -10/Subcaves Commander-Mutant | -9/Recycling Commander-Mutant | -9/Scraptown Resources | -11 -10 -10 -10 -9 -9 ----------- Run | Yrd Mat Min Sub Rec Scr Matter Collected 1085 | 204 . . 281 215 385 Remotely . | . . . . . . Salvage Created 1922 | . . . 90 584 1248 Parts 85 | . . . 6 28 51 Haulers Intercepted . | . . . . . . Recyclers Shooed 1 | . . . . 1 . Parts Field Recycled . | . . . . . . Retrieved Matter . | . . . . . . Parts Self-Destructed 3 | . . . 3 . . Prevented . | . . . . . . Parts Restored . | . . . . . . Kills | -11 -10 -10 -10 -9 -9 ------- Run | Yrd Mat Min Sub Rec Scr Combat Hostiles Destroyed 25 | . . . 3 4 18 Guns 15 | . . . 3 4 8 AOE 10 | . . . . . 10 Classes Destroyed 14 | . . . 1 4 9 Worker 2 | . . . . . 2 Recycler 5 | . . . . 5 . Mechanic 1 | . . . . . 1 Grunt 1 | . . . . . 1 Duelist 1 | . . . . 1 . Sentry 2 | . . . . 2 . Hunter 1 | . . . . 1 . Subdweller 3 | . . . 3 . . Bolteater 1 | . . . . . 1 Federalist 1 | . . . . . 1 Explorer 1 | . . . . . 1 Scientist 4 | . . . . . 4 Scrapper 11 | . . . . . 11 Elite 4 | . . . . . 4 Packrat 1 | . . . . . 1 Best Kill Streak 8 | . . . 2 4 8 Combat Bots Only 7 | . . . 2 2 7 Max Kills in Single Turn 3 | . . . 1 2 3 Gunslinging . | . . . . . . Exploded 2 | . . . . . 2 Melee . | . . . . . . Uniques/NPCs Destroyed . | . . . . . . Combat | -11 -10 -10 -10 -9 -9 -------- Run | Yrd Mat Min Sub Rec Scr Hostile Shots Fired 124 | . . . 33 9 82 Missed 24 | . . . 8 1 15 Hits 100 | . . . 25 8 67 Melee 11 | . . . . 3 8 Projectile 89 | . . . 25 5 59 Critical Strikes 5 | . . . . 2 3 Damage Taken 1733 | . . . 363 165 1205 Core 260 | . . . 9 14 237 Absorbed by Shields . | . . . . . . Core Remaining (%) 100 | 100 . . . . . Volleys Fired 78 | . . . 22 17 39 Largest 3 | . . . 2 2 3 Hottest 99 | . . . 52 54 99 Shots Fired 149 | . . . 40 33 76 Gun 129 | . . . 38 33 58 Cannon . | . . . . . . Launcher 20 | . . . 2 . 18 Special . | . . . . . . Kinetic 135 | . . . 38 33 64 Thermal 4 | . . . . . 4 Explosive 10 | . . . 2 . 8 Electromagnetic . | . . . . . . Robot Hit Streak 16 | . . . 9 16 8 Robot Miss Streak 5 | . . . 2 2 5 Penetration Max . | . . . . . . Secondary Targets 3 | . . . . . 3 Max Gunslinging Chain 1 | . . . . . 1 Shots Hit Robots 105 | . . . 20 27 58 Core Hits 84 | . . . 10 19 55 Critical Kills 1 | . . . . . 1 Critical Parts Destroyed . | . . . . . . Critical Strikes 2 | . . . . 1 1 Destroy 2 | . . . . 1 1 Melee Attacks . | . . . . . . Impact . | . . . . . . Slashing . | . . . . . . Piercing . | . . . . . . Sneak Attacks . | . . . . . . Combat Hostiles . | . . . . . . Follow-up Attacks . | . . . . . . Damage Inflicted 3493 | . . . 370 572 2551 Guns 1888 | . . . 370 572 946 Cannons . | . . . . . . Explosions 1605 | . . . . . 1605 Melee . | . . . . . . Ramming . | . . . . . . Kinetic 2937 | . . . 370 572 1995 Thermal 66 | . . . . . 66 Explosive 490 | . . . . . 490 Electromagnetic . | . . . . . . Impact . | . . . . . . Slashing . | . . . . . . Piercing . | . . . . . . Highest Corruption . | . . . . . . Average Corruption . | . . . . . . Corruption Purged . | . . . . . . Corruption Blocked . | . . . . . . Overload Shots . | . . . . . . Overflow Damage . | . . . . . . Projectiles . | . . . . . . Explosions . | . . . . . . Melee . | . . . . . . Knockbacks . | . . . . . . Impact . | . . . . . . Kinetic . | . . . . . . Secondary . | . . . . . . Self-Inflicted Damage 4 | . . . . . 4 Shots 1 | . . . . . 1 Rammed . | . . . . . . Targets Rammed . | . . . . . . Kicked . | . . . . . . Crushed . | . . . . . . Highest Temperature 324 | . . . . 19 324 Average Temperature 69 | . . . . 9 81 Received Heat Transfer 556 | . . . 45 . 511 Siege Activations . | . . . . . . Martial Activations . | . . . . . . Shielding Activations . | . . . . . . Robots Disrupted . | . . . . . . Combat Hostiles . | . . . . . . Robots Corrupted . | . . . . . . Combat Hostiles . | . . . . . . Parts Fried . | . . . . . . Impact Corruptions . | . . . . . . Robots Melted . | . . . . . . Combat Hostiles . | . . . . . . Parts Melted 4 | . . . . . 4 Heat Transferred 150 | . . . . . 150 Parts Sabotaged . | . . . . . . Parts Stolen 2 | . . . . . 2 Parts Stripped . | . . . . . . Power Chain Reactions . | . . . . . . Alert | -11 -10 -10 -10 -9 -9 ------- Run | Yrd Mat Min Sub Rec Scr Maximum Alert Level 2 | . . . . 2 . Low Security (%) 72 | 100 100 100 . 71 . Level 1 5 | . . . . 6 . Level 2 21 | . . . . 22 . Level 3 . | . . . . . . Level 4 . | . . . . . . Level 5 . | . . . . . . High Security . | . . . . . . Max Security . | . . . . . . Peak Influence 660 | . . . . 660 . Initial 7 | . . . . 7 . Average 169 | . . . . 176 . Influence Increases 1140 | . . . 15 1125 . Destroy 0b10 Robot/C 100 | . . . . 100 . Destroy 0b10 Robot/NC 30 | . . . . 30 . Allied During Kill 11 | . . . . 11 . Select Force Hacks 120 | . . . . 120 . Destroy Structure 864 | . . . . 864 . Lose Combat Pursuer 15 | . . . 15 . . Influence Decreases 1140 | . . . . 484 656 Entered New Map 664 | . . . . 8 656 Time Decay 466 | . . . . 466 . Lost Part 10 | . . . . 10 . Squads Dispatched . | . . . . . . Investigation . | . . . . . . Extermination . | . . . . . . Reinforcement . | . . . . . . Assault . | . . . . . . Garrison . | . . . . . . Intercept . | . . . . . . Searches Triggered . | . . . . . . Construction Impeded . | . . . . . . Haulers Reinforced . | . . . . . . Active Scanning Responses . | . . . . . . Cargo Convoy Interrupts . | . . . . . . Stealth | -11 -10 -10 -10 -9 -9 --------- Run | Yrd Mat Min Sub Rec Scr Distress Signals . | . . . . . . Communications Jammed . | . . . . . . Distress Signals . | . . . . . . Times Spotted 43 | . 2 . 9 3 29 Peak Tracking Total 12 | . 2 . 5 2 12 Tactical Retreats 1 | . . . 1 . . Traps | -11 -10 -10 -10 -9 -9 ------- Run | Yrd Mat Min Sub Rec Scr Traps Triggered . | . . . . . . Indirectly . | . . . . . . Trap Hack Attempts . | . . . . . . Triggered . | . . . . . . Disarmed . | . . . . . . Reprogrammed . | . . . . . . Reused . | . . . . . . Traps Extracted . | . . . . . . Installed . | . . . . . . Triggered . | . . . . . . Machines | -11 -10 -10 -10 -9 -9 ---------- Run | Yrd Mat Min Sub Rec Scr Machines Disabled 12 | . . . 2 . 10 Max in Single Turn 4 | . . . 2 . 4 Machines Repaired . | . . . . . . Machines Dismantled . | . . . . . . Machines Sabotaged . | . . . . . . Overloaded Fab Kills . | . . . . . . Hacking | -11 -10 -10 -10 -9 -9 --------- Run | Yrd Mat Min Sub Rec Scr Machines Accessed 5 | . . . 1 4 . Terminals . | . . . . . . Fabricators . | . . . . . . Repair Stations . | . . . . . . Recycling Units 4 | . . . . 4 . Scanalyzers . | . . . . . . Garrison Access . | . . . . . . Total Hacks 5 | . . . 1 4 . Successful 5 | . . . 1 4 . Failed . | . . . . . . Catastrophic . | . . . . . . Database Lockouts . | . . . . . . Manual 4 | . . . . 4 . Terminals . | . . . . . . Fabricators . | . . . . . . Repair Stations . | . . . . . . Recycling Units 4 | . . . . 4 . Scanalyzers . | . . . . . . Garrison Access . | . . . . . . Terminal Hacks 1 | . . . 1 . . Proto ID Catalog 1 | . . . 1 . . Fabricator Hacks . | . . . . . . Repair Station Hacks . | . . . . . . Recycling Unit Hacks . | . . . . . . Scanalyzer . | . . . . . . Garrison Access Hacks . | . . . . . . Unauthorized Hacks 4 | . . . . 4 . Terminals . | . . . . . . Fabricators . | . . . . . . Repair Stations . | . . . . . . Recycling Units 4 | . . . . 4 . Tunnel 4 | . . . . 4 . Scanalyzers . | . . . . . . Garrison Access . | . . . . . . Data Cores Recovered . | . . . . . . Used . | . . . . . . Hacking Detections . | . . . . . . Full Trace Events . | . . . . . . Feedback Events . | . . . . . . Feedback Blocked . | . . . . . . Robot Schematics Acquired . | . . . . . . Robots Built . | . . . . . . Authchips . | . . . . . . Time . | . . . . . . Total Robot Build Rating . | . . . . . . Part Schematics Acquired . | . . . . . . Parts Built . | . . . . . . Authchips . | . . . . . . Time . | . . . . . . Total Part Build Rating . | . . . . . . Part Studies Acquired . | . . . . . . Parts Repaired . | . . . . . . Time . | . . . . . . Parts Recycled . | . . . . . . Recycled Matter . | . . . . . . Retrieved Matter . | . . . . . . Retrieved Components . | . . . . . . Parts Scanalyzed . | . . . . . . Part Schematics Acquired . | . . . . . . Parts Damaged . | . . . . . . Bothacking | -11 -10 -10 -10 -9 -9 ------------ Run | Yrd Mat Min Sub Rec Scr Used RIF Installer . | . . . . . . Robots Hacked . | . . . . . . Non-combat . | . . . . . . Combat . | . . . . . . Robot Hacks Applied . | . . . . . . Relay Couplers Released . | . . . . . . Fabnet Peak Effective % . | . . . . . . Robots Rewired 9 | . . . . 9 . Allies Hacked . | . . . . . . Hacks Repelled . | . . . . . . Allies | -11 -10 -10 -10 -9 -9 -------- Run | Yrd Mat Min Sub Rec Scr Total Allies 9 | . . . . 9 . Largest Group 9 | . . . . 9 7 Highest-Rated Group 113 | . . . . 113 90 Highest-Rated Ally 34 | . . . . 34 30 Total Orders 40 | . . . . 30 10 FOLLOW 6 | . . . . 5 1 TUNNEL 34 | . . . . 25 9 Ally Attacks 54 | . . . . 11 43 Total Damage 534 | . . . . 183 351 Kills 12 | . . . . 3 9 Allies Corrupted . | . . . . . . Allies Melted . | . . . . . . Intel | -11 -10 -10 -10 -9 -9 ------- Run | Yrd Mat Min Sub Rec Scr Active Infowar (turns) . | . . . . . . Robot Analysis Total . | . . . . . . Derelict Logs Recovered 3 | . . . 1 . 2 Drone Launches . | . . . . . . Drone Recoveries . | . . . . . . Exploration | -11 -10 -10 -10 -9 -9 ------------- Run | Yrd Mat Min Sub Rec Scr Turns Passed 3952 | 16 23 47 647 2134 1085 Spaces Moved 2229 | 26 40 11 517 883 752 Core 322 | 26 40 11 242 . 3 Treads 698 | . . . 275 423 . Legs . | . . . . . . Wheels 1209 | . . . . 460 749 Hover . | . . . . . . Flight . | . . . . . . Fastest Speed 50 | 50 50 50 50 115 50 Average Speed 119 | 50 50 50 108 136 113 Slowest Speed 160 | 50 50 50 160 160 130 Overloaded Moves . | . . . . . . Propulsion Burnouts . | . . . . . . Robots Hopped . | . . . . . . Potential Cave-ins 16 | . . . . . 16 Cave-ins Triggered . | . . . . . . Exploration Rate (%) 33 | 3 15 4 31 93 53 Regions Visited 5 Branch Regions 4 Pre-discovered Areas 5 | . . . . 4 1 Known Exits Taken . | . . . . . . Unknown Exits Taken 5 | 1 1 1 1 1 . Scrap Searched 13 | . . . 11 . 2 Spaces Dug 10 | . . . 10 . . Terrain Destroyed 115 | . . . 10 . 105 Melee . | . . . . . . Projectile 3 | . . . . . 3 AOE 112 | . . . 10 . 102 Terrain Rammed . | . . . . . . Walls Destroyed . | . . . . . . Machines Disabled . | . . . . . . Actions | -11 -10 -10 -10 -9 -9 --------- Run | Yrd Mat Min Sub Rec Scr Total 3371 | 27 42 51 566 1778 907 Wait 935 | . 3 40 7 802 83 Move 2224 | 25 39 10 516 882 752 Hop . | . . . . . . Pick Up 22 | . . 1 6 4 11 Fast Attach 11 | 2 . . 5 3 1 Attach 12 | . . . 4 1 7 Detach 5 | . . . 4 . 1 Swap 12 | . . . . 4 8 Drop 12 | . . . 2 5 5 Fire 78 | . . . 22 17 39 Melee . | . . . . . . Ram . | . . . . . . Kick . | . . . . . . Crush . | . . . . . . Escape Stasis . | . . . . . . Rewire 60 | . . . . 60 . Trap . | . . . . . . Miscellaneous . | . . . . . . Route ------- -11/Scrapyard -10/Materials -10/Mines -10/Subcaves (discovered 2 exits: [*Mat] / *Rec) -9/Recycling (discovered 2 exits: [*Fac] / [*Scr]) -9/Scraptown (discovered 1 exit: [*Fac]) History --------- Turn | Location | Event 2 | -11/Scrapyard | Met Revision 17 10 | -11/Scrapyard | Discovered new exit (range 14) 17 | -11/Scrapyard | Entered Materials 38 | -10/Materials | Discovered new exit (range 6) 40 | -10/Materials | Entered Mines 46 | -10/Mines | Met a Derelict bent on vengeance 47 | -10/Mines | Received a Rocket Launcher from a helpful Derelict 86 | -10/Mines | Discovered new exit (range 3) 87 | -10/Mines | Entered Subcaves 118 | -10/Subcaves | Visited 4L-MR0's lab 133 | -10/Subcaves | Found Gun Armor 188 | -10/Subcaves | Shifting Twisted Machinery released Mak. System Shield 189 | -10/Subcaves | Shifting Twisted Machinery released Barrage Gun 245 | -10/Subcaves | Disturbed a concealed Subdweller 284 | -10/Subcaves | Discovered new exit (range 7) 402 | -10/Subcaves | Disturbed a concealed Subdweller 529 | -10/Subcaves | Build established: Derelict-Mutant 599 | -10/Subcaves | Shifting Twisted Machinery released Sub. Shrapnel Launcher 606 | -10/Subcaves | Shifting Twisted Machinery released Sub. Machine Gun 723 | -10/Subcaves | Discovered new exit (range 8) 734 | -10/Subcaves | Entered Recycling 1285 | -9/Recycling | Build established: Commander-Mutant 1329 | -9/Recycling | Discovered new exit (range 9) 2640 | -9/Recycling | Scanned before Scraplab entrance 2664 | -9/Recycling | Entered Scraplab 2673 | -9/Recycling | Discovered new exit (range 2) 2868 | -9/Recycling | Entered Scraptown 2868 | -9/Scraptown | Accompanied by 7 allies 3073 | -9/Scraptown | Heard Great Nut preacher, LISTEN AND RECITE! 3115 | -9/Scraptown | Scanned Subdweller tech in exchange for log data 3118 | -9/Scraptown | Learned location of Quarantine (-3) 3119 | -9/Scraptown | Learned 8 Research zone layouts 3138 | -9/Scraptown | Discovered new exit (range 13) 3525 | -9/Scraptown | Visited Cyclists 3634 | -9/Scraptown | Attacked by Scraptown defenders 3656 | -9/Scraptown | Attached Gun Armor, gained temporary slots: Weapon x2 3673 | -9/Scraptown | Lost 4 allies 3731 | -9/Scraptown | Lost 3 parts (2n1w) 3736 | -9/Scraptown | Destroyed 7 combat bots 3843 | -9/Scraptown | Entered Cyclist Reading Room 3913 | -9/Scraptown | Core integrity fell below 50% 3939 | -9/Scraptown | Core integrity fell below 20% 3952 | -9/Scraptown | Released all parts (3) 3953 | -9/Scraptown | Destroyed by CL-END(j) with Overtuned Pulse Rifle Last Messages --------------- 03929_ YM-VBX(j): "And where do you think you're going?" 03931_ QD-5RY(j) destroyed. 03942_ Lgt. Treads ripped off. 03943_ Destroyed Lgt. Deuterium Engine. 03946_ WL-MD1(j) heat damages Mak. Salvage Targeting Computer. 03946_ WL-MD1(j) destroyed. 03946_ Switching to secondary target: QL-MRQ(r). 03949_ Destroyed Ripteeth. 03952_ Lgt. Treads ripped off. 03952_ Released Mak. Shrapnel Gun. 03952_ Mak. Shrapnel Gun crushed and broken. 03952_ Released Hvy. Battle Rifle. 03952_ Hvy. Battle Rifle crushed and broken. 03952_ Released Hrd. Heavy Armor Plating. 03952_ Hrd. Heavy Armor Plating crushed and broken. 03953_ CL-END(j): "If 7R-MNS were here you'd quickly regret everything!" Map ----- +----------------------------------------------------+ | ?# # #????????????????????????????????????? | | ?# # ## ##???????????????????????????????????? | | ?# = "#???????????????????????????????????? | | ?# <% !!% #####################???????????????? | | ?# !! ! ##"""""""""#"""""""""#???????????????? | | ?# #% [ #" "#" ? "#???????????????? | | ?# # ! #" """ "#???????????????? | | ?# "" "#" "" "#???????????????? | | ?## "" """ "#" " "#???????????????? | | ??####"= * #" "#" "#???????????????? | | ###### !" """" ""#"" """"""#???????????????? | | [ % #???????????????? | | ###?????????????? | | " #?????????????? | | ####### = % ""########"" """"### ###?????????????? | | ?????#"*%!%= #??????#" %"#?###???????????????? | | ??#??# ! "######?#" ""#?###???????????????? | | ??? # """""#?#" """#?#!#???????????????? | | ?### "" ! ""#?#" """### #???????????????? | | ?#" % % "#?#"""""""##=!#???????????????? | | ?#" = ""#?###########!#???????????????? | | ##" %= """#??????????##=#???????????????? | | ?#" "####?????######j#####????????????? | | ?#" ""###????????#""=j!"j#""#????????????? | | ?#" %= #####""!g#" #????????????? | | ?#""""" ; j !|@=[r"#" X#????????????? | | ?######" # """ ;####""""# #????????????? | | ??????#" # """" #???#""""#"# #"#????????????? | | ######## # """"" #???#####;" # #????????????? | | # #???#" ????????????? | | # ?????# #???????????? | | ######## # ??????#" [ #???????????? | | ??????# # ????????# % ##???????????? | | ?????### ### ##########"#### # = ##???????????? | | ?????# #???????????? | | ?????# #???????????? | | ##???# = #???????????? | | ""???# % #???????????? | | ??# #???????????? | | ?# ################ #???????????? | | "" ?# #??????????????# = #???????????? | | "" # #??????????????# %= #???????????? | | "" # #?????????????? ! #???????????? | | #?????????????# #???????????? | | # #?? ????????## #???????????? | | """""# #? #???????## ###?????????? | | ####?# #? ??????# ""#"#???????? | | ####?# #"" ?????# """"#???????? | | """"?# #"$ "????# ""###???????? | | """" # #" ????# ###?????????? | +----------------------------------------------------+ Best States ------------- Heat Dissipation 25 Energy Generation 5 Energy Capacity 200 Matter Stores 300 Matter Capacity 300 Sight Range 16 Terrain Scan Density 10 Armor Coverage 600 Evasion (%) 50 Recoil Reduction 2 Defensive Hacking 11 Item Schematics ----------------- None Robot Schematics ------------------ None Fabricated ------------ Nothing Repaired ---------- Nothing Studied --------- None Alien Tech Used ----------------- None Achievements -------------- You Again Challenges ------------ None Game ------ Seed EtherialSuperdenseLog Manual? 0 Play Time 00:20:13 Cumulative 371.5 hours Start 2025.11.05 @ 08:18:53 End 2025.11.05 @ 08:40:00 Sessions 1 Manual Loads 0 Difficulty Rogue Special Mode None Game No. 334 Rogue 334 Adventurer 0 Explorer 0 Win Type - Total 3 Types 2/1/0/0/0/0/0/0/0/0 Lore% 83 Gallery% 82 Achievement% 60 Wizard Run 0 Options --------- Layout 1 ASCII 0 Keyboard 0 Movement Numpad Keybinds 0 Fullscreen 1 Font 24/Smallcaps Map View 50x35 Zoom Use 0% Tactical HUD 1 Map Filters NONE Filters NONE Steam 1 RUN: f4150bdc-0276-45fa-b527-41f41f35af4a